Cogmind - Beta 14 @@@ ROGUE MODE // 2024.08.19 @ 12:13:45 Player: lexi^-^ Result: Self-destructed Performance ------------- Evolutions (2) 1000 Regions Visited (3) 600 Robots Destroyed (11) 55 Value Destroyed (206) 206 Prototype IDs (1) 20 Alien Tech Used (0) 0 Bonus (0) 0 TOTAL SCORE: 1881 Bonus ------- None Cogmind --------- Core Integrity 504/550 Matter 238/300 Energy 100/100 System Corruption 0% Temperature Cool (0) Movement Core (50) Location -8/Materials Parts ------- > --- POWER (2) -------- (None) > --- PROPULSION (4) --- (None) > --- UTILITY (3) ------ (None) > --- WEAPON (2) ------- Battle Rifle > --- INVENTORY (5) ---- Small Storage Unit Advanced Weight Redist. System Light Armor Plating Authchip [Propulsion] Scrap Shield Fragment (49) Peak State ------------ > --- POWER ------------ Light Ion Engine > --- PROPULSION ------- Hover Unit Backup Propulsion I > --- UTILITY ---------- Small Storage Unit Propulsion Shielding > --- WEAPON ----------- EM Pulse Gun Light Assault Rifle > --- INVENTORY -------- Light Ion Engine Backup Propulsion I Flight Unit Backup Plating I Light Armor Plating Authchip [Propulsion] Assault Rifle [Rating: 8] Favorites ----------- Power Light Ion Engine Engine Light Ion Engine Propulsion Flight Unit Wheel Wheel Hover Unit Hover Unit Flight Unit Flight Unit Utility Propulsion Shielding Device Structural Scanner Storage Small Storage Unit Processor Targeting Computer Protection Propulsion Shielding Weapon Battle Rifle Energy Gun Medium Laser Ballistic Gun Battle Rifle Build | -11 -10 -10 -8 ------- Run | Yrd Mat Sub Mat Slots Evolved 4 | . . . 4 Power 1 | . . . 1 Propulsion 2 | . . . 2 Utility 1 | . . . 1 Weapon . | . . . . Parts Attached 32 | 8 14 8 2 Power 2 | 1 . 1 . Engine 2 | 1 . 1 . Core . | . . . . Reactor . | . . . . Propulsion 8 | 2 5 1 . Treads . | . . . . Leg . | . . . . Wheel 2 | 2 . . . Hover 3 | . 3 . . Flight 3 | . 2 1 . Utility 13 | 1 7 4 1 Device 2 | . 1 . 1 Storage 2 | 1 1 . . Processor 1 | . 1 . . Hackware . | . . . . Protection 8 | . 4 4 . Artifact . | . . . . Weapon 9 | 4 2 2 1 Energy Gun 3 | 1 1 . 1 Energy Cannon . | . . . . Ballistic Gun 6 | 3 1 2 . Ballistic Cannon . | . . . . Launcher . | . . . . Special Weapon . | . . . . Impact Weapon . | . . . . Slashing Weapon . | . . . . Piercing Weapon . | . . . . Special Melee Weapon . | . . . . Unidentified Prototypes 1 | . . . 1 Parts Lost 8 | . 1 6 1 Power 2 | . . 2 . Propulsion 4 | . 1 2 1 Utility 1 | . . 1 . Weapon 1 | . . 1 . Highest Loss Streak 4 | . 1 4 1 To Critical Strikes . | . . . . Average Slot Usage (%) 60 | . 98 59 17 Engine 6 | . 14 5 . Wheel 1 | . 4 . . Hover 7 | . 21 . . Flight 10 | . 2 19 8 Device 1 | . 4 . . Storage 2 | . 7 . . Protection 12 | . 14 21 . Energy Gun 6 | . 14 5 . Ballistic Gun 9 | . 12 7 9 Peak Build Rating 8 | 6 8 7 8 Average Rating 5 | 4 6 5 3 On Entrance 4 | . 6 6 4 Naked Turns . | . . . . Heaviest Build 20 | 12 12 20 2 Greatest Support 20 | 20 20 8 4 Greatest Overweight (x) 4 | . 1 4 . Average Overweight (x) . | . . . . Largest Inventory Capacity 8 | 8 8 5 5 Average Capacity 5 | 6 6 5 5 Most Carried 7 | 2 7 5 5 Average Carried 4 | . 4 3 4 Final Capacity 8 | 8 5 5 5 Final Carried 5 | 2 5 5 5 Class Distribution -------------------- 100% | Mutant Dominant Class ---------------- Mutant | -10/Materials Mutant | -10/Subcaves Mutant | -8/Materials Resources | -11 -10 -10 -8 ----------- Run | Yrd Mat Sub Mat Matter Collected 587 | 252 209 126 . Remotely . | . . . . Salvage Created 533 | . 316 217 . Parts 30 | . 20 10 . Haulers Intercepted . | . . . . Recyclers Shooed 1 | . 1 . . Parts Field Recycled . | . . . . Retrieved Matter . | . . . . Parts Self-Destructed 2 | . . 2 . Prevented . | . . . . Kills | -11 -10 -10 -8 ------- Run | Yrd Mat Sub Mat Combat Hostiles Destroyed 7 | . 6 1 . Guns 7 | . 6 1 . Classes Destroyed 6 | . 5 1 . Worker 2 | . 2 . . Recycler 1 | . 1 . . Watcher 1 | . 1 . . Swarmer 3 | . 3 . . Grunt 3 | . 3 . . Subdweller 1 | . . 1 . Best Kill Streak 2 | . 2 1 . Combat Bots Only 2 | . 2 1 . Max Kills in Single Turn 1 | . 1 1 . Gunslinging . | . . . . Exploded . | . . . . Melee . | . . . . Uniques/NPCs Destroyed . | . . . . Combat | -11 -10 -10 -8 -------- Run | Yrd Mat Sub Mat Hostile Shots Fired 61 | . 34 18 9 Missed 19 | . 9 6 4 Damage Taken 672 | . 249 331 92 Core 222 | . 40 136 46 Absorbed by Shields . | . . . . Redirected to Shielding 35 | . 18 17 . Core Remaining (%) 64 | 100 . 29 . Volleys Fired 110 | . 53 48 9 Largest 2 | . 2 1 1 Hottest 70 | . 70 40 25 Shots Fired 138 | . 81 48 9 Gun 138 | . 81 48 9 Cannon . | . . . . Launcher . | . . . . Special . | . . . . Kinetic 76 | . 40 27 9 Thermal 19 | . 19 . . Explosive . | . . . . Electromagnetic 43 | . 22 21 . Robot Hit Streak 26 | . 10 24 26 Robot Miss Streak 3 | . 3 2 1 Penetration Max . | . . . . Secondary Targets . | . . . . Shots Hit Robots 82 | . 40 38 4 Core Hits 31 | . 20 10 1 Critical Kills 1 | . 1 . . Critical Parts Destroyed . | . . . . Critical Strikes 4 | . 4 . . Burn 2 | . 2 . . Destroy 1 | . 1 . . Corrupt 1 | . 1 . . Melee Attacks . | . . . . Impact . | . . . . Slashing . | . . . . Piercing . | . . . . Sneak Attacks . | . . . . Combat Hostiles . | . . . . Follow-up Attacks . | . . . . Damage Inflicted 1044 | . 469 526 49 Guns 1042 | . 467 526 49 Cannons . | . . . . Explosions . | . . . . Melee . | . . . . Ramming 2 | . 2 . . Kinetic 600 | . 177 374 49 Thermal 137 | . 137 . . Explosive . | . . . . Electromagnetic 305 | . 153 152 . Impact . | . . . . Slashing . | . . . . Piercing . | . . . . Highest Corruption . | . . . . Average Corruption . | . . . . Corruption Purged . | . . . . Corruption Blocked . | . . . . Overload Shots . | . . . . Overflow Damage . | . . . . Projectiles . | . . . . Explosions . | . . . . Melee . | . . . . Knockbacks . | . . . . Impact . | . . . . Kinetic . | . . . . Secondary . | . . . . Self-Inflicted Damage 1 | . 1 . . Shots . | . . . . Rammed 2 | . 2 . . Targets Rammed 2 | . 2 . . Kicked . | . . . . Crushed . | . . . . Highest Temperature 340 | . 216 . 340 Average Temperature 58 | . 48 . 181 Received Heat Transfer 231 | . 87 108 36 Siege Activations . | . . . . Robots Corrupted . | . . . . Combat Hostiles . | . . . . Parts Fried 3 | . . 3 . Impact Corruptions . | . . . . Robots Melted . | . . . . Combat Hostiles . | . . . . Parts Melted 3 | . 3 . . Heat Transferred 555 | . 555 . . Parts Sabotaged . | . . . . Parts Stolen . | . . . . Parts Stripped . | . . . . Power Chain Reactions . | . . . . Alert | -11 -10 -10 -8 ------- Run | Yrd Mat Sub Mat Peak Influence 155 | . 155 . . Initial . | . . . . Average 32 | . 64 . . Maximum Alert Level . | . . . . Low Security (%) 100 | 100 100 . 100 Level 1 . | . . . . Level 2 . | . . . . Level 3 . | . . . . Level 4 . | . . . . Level 5 . | . . . . High Security . | . . . . Max Security . | . . . . Squads Dispatched 3 | . 2 . 1 Investigation . | . . . . Extermination . | . . . . Reinforcement 3 | . 2 . 1 Assault . | . . . . Garrison . | . . . . Intercept . | . . . . Searches Triggered . | . . . . Construction Impeded . | . . . . Haulers Reinforced . | . . . . Active Scanning Responses . | . . . . Cargo Convoy Interrupts . | . . . . Stealth | -11 -10 -10 -8 --------- Run | Yrd Mat Sub Mat Distress Signals 1 | . 1 . . Communications Jammed . | . . . . Distress Signals . | . . . . Times Spotted 32 | . 17 6 9 Peak Tracking Total 6 | . 6 2 6 Tactical Retreats 5 | . 3 2 . Traps | -11 -10 -10 -8 ------- Run | Yrd Mat Sub Mat Traps Triggered . | . . . . Indirectly . | . . . . Trap Hack Attempts . | . . . . Triggered . | . . . . Disarmed . | . . . . Reprogrammed . | . . . . Reused . | . . . . Traps Extracted . | . . . . Installed . | . . . . Triggered . | . . . . Machines | -11 -10 -10 -8 ---------- Run | Yrd Mat Sub Mat Machines Disabled 1 | . 1 . . Max in Single Turn 1 | . 1 . . Machines Repaired . | . . . . Machines Dismantled . | . . . . Machines Sabotaged . | . . . . Overloaded Fab Kills . | . . . . Hacking | -11 -10 -10 -8 --------- Run | Yrd Mat Sub Mat Machines Accessed 4 | . 3 . 1 Terminals 3 | . 2 . 1 Fabricators . | . . . . Repair Stations . | . . . . Recycling Units 1 | . 1 . . Scanalyzers . | . . . . Garrison Access . | . . . . Total Hacks 10 | . 8 . 2 Successful 5 | . 4 . 1 Failed 5 | . 4 . 1 Catastrophic 1 | . 1 . . Database Lockouts . | . . . . Manual . | . . . . Terminals 8 | . 6 . 2 Fabricators . | . . . . Repair Stations . | . . . . Recycling Units 2 | . 2 . . Scanalyzers . | . . . . Garrison Access . | . . . . Terminal Hacks 4 | . 3 . 1 Terminal Index 1 | . . . 1 Alert Level 2 | . 2 . . Hauler Manifests 1 | . 1 . . Fabricator Hacks . | . . . . Repair Station Hacks . | . . . . Recycling Unit Hacks 1 | . 1 . . Retrieve Components 1 | . 1 . . Scanalyzer . | . . . . Garrison Access Hacks . | . . . . Unauthorized Hacks . | . . . . Terminals . | . . . . Fabricators . | . . . . Repair Stations . | . . . . Recycling Units . | . . . . Scanalyzers . | . . . . Garrison Access . | . . . . Data Cores Recovered . | . . . . Used . | . . . . Hacking Detections 3 | . 2 . 1 Full Trace Events . | . . . . Feedback Events . | . . . . Feedback Blocked . | . . . . Robot Schematics Acquired . | . . . . Robots Built . | . . . . Authchips . | . . . . Time . | . . . . Total Robot Build Rating . | . . . . Part Schematics Acquired . | . . . . Parts Built . | . . . . Authchips . | . . . . Time . | . . . . Total Part Build Rating . | . . . . Parts Repaired . | . . . . Time . | . . . . Parts Recycled . | . . . . Recycled Matter . | . . . . Retrieved Matter . | . . . . Retrieved Components 3 | . 3 . . Parts Scanalyzed . | . . . . Part Schematics Acquired . | . . . . Parts Damaged . | . . . . Bothacking | -11 -10 -10 -8 ------------ Run | Yrd Mat Sub Mat Used RIF Installer . | . . . . Robots Hacked . | . . . . Non-combat . | . . . . Combat . | . . . . Robot Hacks Applied . | . . . . Relay Couplers Released . | . . . . Fabnet Peak Effective % . | . . . . Robots Rewired . | . . . . Allies Hacked . | . . . . Hacks Repelled . | . . . . Allies | -11 -10 -10 -8 -------- Run | Yrd Mat Sub Mat Total Allies . | . . . . Largest Group . | . . . . Highest-Rated Group . | . . . . Highest-Rated Ally . | . . . . Total Orders . | . . . . Ally Attacks . | . . . . Total Damage . | . . . . Kills . | . . . . Allies Corrupted . | . . . . Allies Melted . | . . . . Intel | -11 -10 -10 -8 ------- Run | Yrd Mat Sub Mat Robot Analysis Total . | . . . . Derelict Logs Recovered 1 | . . 1 . Drone Launches . | . . . . Drone Recoveries . | . . . . Exploration | -11 -10 -10 -8 ------------- Run | Yrd Mat Sub Mat Turns Passed 1821 | 41 634 586 560 Spaces Moved 1622 | 36 645 804 137 Core 25 | 4 . . 21 Treads . | . . . . Legs . | . . . . Wheels 120 | 32 88 . . Hover 478 | . 478 . . Flight 999 | . 79 804 116 Fastest Speed 37 | 50 37 37 40 Average Speed 57 | 76 65 53 41 Slowest Speed 360 | 80 120 360 50 Overloaded Moves . | . . . . Propulsion Burnouts . | . . . . Robots Hopped 2 | . 1 . 1 Cave-ins Triggered . | . . . . Exploration Rate (%) 22 | 3 53 25 9 Regions Visited 3 Branch Regions 1 Pre-discovered Areas . | . . . . Known Exits Taken . | . . . . Unknown Exits Taken 3 | 1 1 1 . Scrap Searched 2 | . . 2 . Spaces Dug . | . . . . Terrain Destroyed . | . . . . Melee . | . . . . Projectile . | . . . . AOE . | . . . . Terrain Rammed . | . . . . Walls Destroyed . | . . . . Machines Disabled . | . . . . Actions | -11 -10 -10 -8 --------- Run | Yrd Mat Sub Mat Total 2389 | 45 784 929 631 Wait 553 | . 54 20 479 Move 1615 | 35 642 803 135 Hop 2 | . 1 . 1 Pick Up 33 | 2 8 21 2 Fast Attach 14 | 6 5 2 1 Attach 13 | . 6 6 1 Detach 8 | . 3 4 1 Swap 5 | 2 3 . . Drop 31 | . 7 22 2 Fire 110 | . 53 48 9 Melee . | . . . . Ram 2 | . 2 . . Kick . | . . . . Crush . | . . . . Escape Stasis . | . . . . Rewire . | . . . . Trap . | . . . . Miscellaneous 3 | . . 3 . Route ------- -11/Scrapyard -10/Materials (discovered 2 exits: [*Min] / [*Sub]) -10/Subcaves -8/Materials History --------- Turn | Location | Event 10 | -11/Scrapyard | Discovered new exit (range 16) 42 | -11/Scrapyard | Entered Materials 278 | -10/Materials | Discovered new exit (range 7) 302 | -10/Materials | Build established: Mutant 663 | -10/Materials | Discovered new exit (range 12) 676 | -10/Materials | Entered Subcaves 707 | -10/Subcaves | Disturbed a concealed Subdweller 773 | -10/Subcaves | Learned 2 Materials zone layouts 862 | -10/Subcaves | Core integrity fell below 50% 926 | -10/Subcaves | Lost 4 parts (1p2n1w) 1258 | -10/Subcaves | Discovered new exit (range 11) 1262 | -10/Subcaves | Entered Materials 1262 | -8/Materials | Evolved 4 slots: Power x1, Propulsion x2, Utility x1 1822 | -8/Materials | Self-destructed Last Messages --------------- 01278_ Connecting with Terminal... 01278_ Current location identified: Materials >>Index(Terminals) Found 11 terminals. Downloaded coordinate data. 01282_ Dropped Scrap Shield. 01283_ Acquired Sml. Storage Unit. 01286_ O-24 Administrator: "IFF HANDSHAKE FAILED. SECURING TERMINAL." 01289_ K-01 Serf collects debris. 01295_ O-24 Administrator uses terminal to summon reinforcements. 01295_ ALERT: Hostiles spotted, dispatching reinforcements to Terminal M007. 01295_ O-24 Administrator locks terminal. 01296_ K-01 Serf collects debris. 01301_ Acquired Adv. Weight Redist. System. 01425_ K-01 Serf collects debris. 01522_ K-01 Serf cleans the Terminal. 01811_ Flight Unit destroyed. Map ----- +----------------------------------------------------+ | ?????????????????????????????????????????????? | | ?????????????????????????????????????????????? | | ?????????????????????????????????????????????? | | ?????????????????????????????????????????????? | | ?????????????????????????????????????????????? | | ?????????????????????????????????????????????? | | ?????????????????????????????????????????????? | | ?????????????????????????????????????????????? | | ?????????????????????????????????????????????? | | ?????????????????????????????????????????????? | | ?????????????????????#+#?????????????????????? | | ????????????????????? k????????????????????? | | ????????????????????? #????????????????????? | | ???????????????????? k#????????????????????? | | ????????????????????# #????????????????????? | | ????????????????????# #????????????????????? | | ???????###########??# #????????????????????? | | ???????# #??# #????????????????????? | | ???????# #??# g #????????????????????? | | ???????# #??# g#????????????????????? | | ???????# #??# #????????????????????? | | ???????# #??# g #????????????????????? | | ???????# #??# ##########???????????? | | ???????# #??# # """"" #???????????? | | ???????# #??# # ""T"" #???????????? | | ?????#######/########@ # #???????????? | | ?????# T k o# #???????????? | | ?????# + #???????????? | | ?????# # """ #???????????? | | ?????# """" # #### """ #???????????? | | ?????# """" # #??# """ #???????????? | | ?????#[ """" # !#??#! ????????????? | | ?????# ##!!!!##??##########???????????? | | ?????# #######????????????????????????? | | ???#####+## #??????????????????????????????? | | ???# # #??????????????????????????????? | | ???#[ #####??????????????????????????????? | | ???# #??????????????????????????????????? | | ???# #??????????????????????????????????? | | ???# #??????????????????????????????????? | | ???# #??????????????????????????????????? | | ???########??????????????????????????????????? | | ?????????????????????????????????????????????? | | | | | | | | | | | | | | | +----------------------------------------------------+ Best States ------------- Heat Dissipation 31 Energy Generation 10 Energy Capacity 125 Matter Stores 300 Matter Capacity 300 Sight Range 16 Terrain Scan Density 10 Armor Coverage 800 Propulsion Shielding 33 Evasion (%) 62 Targeting Accuracy 5 Authchip Count 1 Item Schematics ----------------- None Robot Schematics ------------------ None Fabricated ------------ Nothing Alien Tech Used ----------------- None Achievements -------------- None Challenges ------------ None Game ------ Seed SuperquantumArcDesublimator Manual? 0 Play Time 00:30:06 Cumulative 58.8 hours Start 2024.08.19 @ 11:43:36 End 2024.08.19 @ 12:13:45 Sessions 1 Manual Loads 0 Difficulty Rogue Special Mode None Game No. 37 Rogue 27 Adventurer 10 Explorer 0 Win Type - Total 0 Types 0/0/0/0/0/0/0/0/0 Lore% 14 Gallery% 35 Achievement% 26 Wizard Run 0 Options --------- Layout 1 ASCII 0 Keyboard 0 Movement Mouse Keybinds 0 Fullscreen 2 Font 24/Smallcaps Map View 50x35 Zoom Use 0% Tactical HUD 1 Map Filters NONE Filters NONE Steam 1 RUN: cf560a1d-72a5-417a-93af-ed0d881fac39